Workbook

Sheet Gebührenrechner
C2: t@xwert GEBÜHRENRECHNER 2.0
C4: Gegenstandswert / Streitwert = | E4: 0 €
C6: Umsatzsteuersatz für anwaltliche Leistungen = | E6: 19%
C8: Gesetzesstand | E8: ab 01.08.2013
E10: Gebühren
E12: Finanzamt
C14: Gebühr für eine verbindliche Auskunft nach § 89 Abgabenordnung (AO) = | E14: =Datenbank!B49 -> 0 €
C15: Die Gebühr wird in entsprechender Anwendung des § 34 des Gerichtskostengesetzes mit einem Gebührensatz von 1,0 erhoben. § 39 Absatz 2 des Gerichtskostengesetzes ist entsprechend anzuwenden. Beträgt der Gegenstandswert weniger als 10 000 Euro, wird keine Gebühr erhoben. Ist ein Gegenstandswert nicht bestimmbar und kann er auch nicht durch Schätzung bestimmt werden, ist eine Zeitgebühr zu berechnen; sie beträgt 50 Euro je angefangene halbe Stunde Bearbeitungszeit. Beträgt die Bearbeitungszeit weniger als zwei Stunden, wird keine Gebühr erhoben. Auf die Gebühr kann ganz oder teilweise verzichtet werden, wenn ihre Erhebung nach Lage des einzelnen Falls unbillig wäre. Die Gebühr kann insbesondere ermäßigt werden, wenn ein Antrag auf Erteilung einer verbindlichen Auskunft vor Bekanntgabe der Entscheidung der Finanzbehörde zurückgenommen wird.
E17: Gericht
C19: Gerichtskosten - Prozesskostenrisiko bei Verfahrensbeendigung
C21: Gerichtskosten gem. §§ 3, 34, Anlage 1 GKG + Rechtsanwaltsvergütung gem. §§ 2, 13, Anlage 1 RVG
C23: durch Urteil in der ersten Instanz = | E23: =Prozesskostenrechner!I52 -> 420 €
C25: durch Vergleich in der ersten Instanz = | E25: =Prozesskostenrechner!I53 -> 457 €
C27: durch Urteil in der zweiten Instanz = | E27: =Prozesskostenrechner!I54 -> 908 €
C29: durch Vergleich in der zweiten Instanz = | E29: =Prozesskostenrechner!I55 -> 977 €
C30: Gesamtkostenrisiko: Das errechnete Gesamtkostenrisiko umfasst die ggf. reduzierten Gerichtsgebühren sowie die Verfahrens-, Termins- und ggf. Einigungsgebühren nebst Post- und Telekommunikationspauschale für die Prozessbevollmächtigten beider Seiten, und zwar für die Fälle, dass beide Parteien, nur eine Partei oder keine Partei vorsteuerabzugsberechtigt ist.
C34: Seit dem 01.07.2006 ist der Bereich der anwaltlichen Honorierung im außergerichtlichen Bereich dereguliert. Dementsprechend besteht für diesen Bereich seither ein Verhandlungsspielraum. Die ausgewiesene Gebühr stellt diesbezüglich nur eine Verhandlungsbasis dar. Der Gebührenrechner wurde mit großer Sorgfalt erstellt. Jedoch können auch bei noch so sorgfältiger Arbeitsweise Fehler nicht völlig ausgeschlossen werden. Deshalb übernimmt der Autor keine Garantie für die Richtigkeit der hier ausgewiesenen Daten. Die abschließende Gebührenerhebung steht allein im Verantwortungsbereich der Kostensteller. Der Autor bittet Hinweise auf eventuelle Fehler per e-mail an gebuehrenfehler@taxwert.de zu schicken. Hierbei wären Erläuterungen mit Verweisen auf die relevanten Rechtsnormen sehr hilfreich.

Sheet Prozesskostenrechner (hidden)
B1: Prozesskostenrechner | L1: kein Eingabefehler | M1: Checkboxen | N1: Auswahllisten
B2: Erläuterungen s. unten, Druckansicht s. hinten
A4: I | B4: Streit-/Gegenstandswert | C4: =Gebührenrechner!E4 -> 0.00 | L4: =IF(OR(ISERROR(C4),ISTEXT(C4)),FALSE,NOT(OR(C4<0,C4=""))) -> TRUE
B5: Umsatzsteuersatz für anwaltliche Leistungen | C5: =Gebührenrechner!E6 -> 19.0% | L5: =IF(OR(ISERROR(C5),ISTEXT(C5)),FALSE,NOT(OR(C5<0,C5>1,C5="",C5-ROUNDDOWN(C5,3)>0))) -> TRUE
B6: Gesetzesstand | C6: =Gebührenrechner!E8 -> ab 01.08.2013 | L6: =OR(EXACT(C6,N9:N11)) -> TRUE
N8: =Datenbank!B1 -> ab 01.08.2013
A9: II | B9: Gerichtskosten gem. §§ 3, 34, Anlage 1 GKG | N9: bis 31.07.2013
B10: Streitwert, gedeckelt gem. § 39 Abs. 2 GKG | C10: =IF(AND($L$4,$L$6),Datenbank!E20,"") -> 0.00 | N10: ab 01.08.2013
B11: Wertstufe gem. § 34 Abs. 1 GKG bis … | C11: =IF($C$10<>"",Datenbank!E22,"") -> 500.00 | N11: heute
B12: 1,0-Wertgebühr gem. § 34 Abs. 1 GKG | E12: =IF($C$10<>"",Datenbank!E23,"") -> 35.00
B13: freie Eingabe | D13: Satz | E13: Gebühr | F13: Σ
E14: =IF(AND($C$10<>"",L14),IF(D14>0,MAX(E$12*D14,Datenbank!$E$21),""),"") ->  | L14: =IF(OR(ISERROR(D14),ISTEXT(D14)),FALSE,NOT(OR(AND(D14<=0,D14<>""),D14-ROUNDDOWN(D14,1)>0,AND(D14="",M14=TRUE)))) -> TRUE | M14: FALSE
B15: einzelne Gebühren gem. KV-GKG | D15: Satz | E15: Gebühr | F15: Σ
B16: Nr. 1210 (Verfahrensgebühr, erster Rechtszug) | D16: 3.0 | E16: =IF($C$10<>"",MAX(E$12*D16,Datenbank!$E$21),"") -> 105.00 | M16: FALSE
B17: Nr. 1211 (Verfahrensgebühr bei vorzeitiger Verfahrensbeendigung) | D17: 1.0 | E17: =IF($C$10<>"",MAX(E$12*D17,Datenbank!$E$21),"") -> 35.00 | M17: FALSE
B18: Nr. 1220 (Verfahrensgebühr, Berufung) | D18: 4.0 | E18: =IF($C$10<>"",MAX(E$12*D18,Datenbank!$E$21),"") -> 140.00 | M18: FALSE
B19: Nr. 1222 (Verfahrensgebühr bei Verf.beend. nach Berufungsbegr.) | D19: 2.0 | E19: =IF($C$10<>"",MAX(E$12*D19,Datenbank!$E$21),"") -> 70.00 | M19: FALSE
B20: Nr. 1230 (Verfahrensgebühr, Revision) | D20: 5.0 | E20: =IF($C$10<>"",MAX(E$12*D20,Datenbank!$E$21),"") -> 175.00 | M20: FALSE
B21: Nr. 1610 (Verfahrensgebühr, selbständiges Beweisverfahren) | D21: 1.0 | E21: =IF($C$10<>"",MAX(E$12*D21,Datenbank!$E$21),"") -> 35.00 | M21: FALSE
B22: Endsumme | E22: =IF($C$10<>"",SUMIF(M14,TRUE,E14)+SUMIF(M16:M21,TRUE,E16:E21),"") -> 0.00
A24: III | B24: Rechtsanwaltsvergütung gem. §§ 2, 13, Anlage 1 RVG
B25: Gegenstandswert, gedeckelt gem. § 22 Abs. 2 Satz 1 RVG | C25: =IF(AND($L$4,$L$6),Datenbank!E42,"") -> 0.00
B26: Wertstufe gem. § 13 Abs. 1 RVG bis … | C26: =IF($C$25<>"",Datenbank!E44,"") -> 500.00
B27: 1,0-Wertgebühr gem. § 13 Abs. 1 RVG | E27: =IF($C$25<>"",Datenbank!E45,"") -> 45.00
B28: freie Eingabe | D28: Satz | E28: Gebühr | F28: Σ | G28: Nr. 7002 | H28: Nr. 7008 | I28: netto | J28: brutto
E29: =IF(AND($C$25<>"",L29),IF(D29>0,MAX(E$27*D29,Datenbank!$E$43),""),"") ->  | G29: =IF(E29<>"",MIN(E29*0.2,20),"") ->  | H29: =IF(AND($L$5,E29<>""),I29*C$5,"") ->  | I29: =IF(E29<>"",SUM(E29,G29),"") ->  | J29: =IF(H29<>"",SUM(I29,H29),"") ->  | L29: =IF(OR(ISERROR(D29),ISTEXT(D29)),FALSE,NOT(OR(AND(D29<=0,D29<>""),D29-ROUNDDOWN(D29,2)>0,AND(D29="",M29=TRUE)))) -> TRUE | M29: FALSE
E30: =IF(AND($C$25<>"",L30),IF(D30>0,MAX(E$27*D30,Datenbank!$E$43),""),"") ->  | G30: =IF(E30<>"",MIN(E30*0.2,20),"") ->  | H30: =IF(AND($L$5,E30<>""),I30*C$5,"") ->  | I30: =IF(E30<>"",SUM(E30,G30),"") ->  | J30: =IF(H30<>"",SUM(I30,H30),"") ->  | L30: =IF(OR(ISERROR(D30),ISTEXT(D30)),FALSE,NOT(OR(AND(D30<=0,D30<>""),D30-ROUNDDOWN(D30,2)>0,AND(D30="",M30=TRUE)))) -> TRUE | M30: FALSE
E31: =IF(AND($C$25<>"",L31),IF(D31>0,MAX(E$27*D31,Datenbank!$E$43),""),"") ->  | H31: =IF(AND($L$5,E31<>""),I31*C$5,"") ->  | I31: =IF(E31<>"",SUM(E31,G31),"") ->  | J31: =IF(H31<>"",SUM(I31,H31),"") ->  | L31: =IF(OR(ISERROR(D31),ISTEXT(D31)),FALSE,NOT(OR(AND(D31<=0,D31<>""),D31-ROUNDDOWN(D31,2)>0,AND(D31="",M31=TRUE)))) -> TRUE | M31: FALSE
B32: einzelne Gebühren gem. VV-RVG | D32: Satz | E32: Gebühr | F32: Σ | G32: Nr. 7002 | H32: Nr. 7008 | I32: netto | J32: brutto
B33: Nr. 2300 (Geschäftsgebühr, Schwellensatz gem. Anm.) | D33: 1.3 | E33: =IF($C$25<>"",MAX(E$27*D33,Datenbank!$E$43),"") -> 58.50 | G33: 11.70 | H33: =IF(AND($L$5,E33<>""),I33*C$5,"") -> 13.34 | I33: =IF(E33<>"",SUM(E33,G33),"") -> 70.20 | J33: =IF(H33<>"",SUM(I33,H33),"") -> 83.54 | M33: FALSE
B34: Nr. 2300 (Geschäftsgebühr, überdurchschnittlich) | D34: 1.5 | E34: =IF($C$25<>"",MAX(E$27*D34,Datenbank!$E$43),"") -> 67.50 | G34: 13.50 | H34: 15.39 | I34: 81.00 | J34: 96.39 | M34: FALSE
B35: Nr. 2300 (Geschäftsgebühr, überdurchschnittlich) | D35: 2.0 | E35: =IF($C$25<>"",MAX(E$27*D35,Datenbank!$E$43),"") -> 90.00 | G35: 18.00 | H35: 20.52 | I35: 108.00 | J35: 128.52 | M35: FALSE
B36: Nr. 3100 (Verfahrensgebühr, erster Rechtszug) | D36: 1.3 | E36: =IF($C$25<>"",MAX(E$27*D36,Datenbank!$E$43),"") -> 58.50 | G36: 11.70 | H36: 13.34 | I36: 70.20 | J36: 83.54 | M36: FALSE
B37: Nr. 3100+3104 (Verfahrens- und Terminsgebühr, erster Rechtszug) | D37: 2.5 | E37: =IF($C$25<>"",MAX(E$27*D37,Datenbank!$E$43),"") -> 112.50 | G37: 20.00 | H37: 25.18 | I37: 132.50 | J37: 157.68 | M37: FALSE
B38: Nr. 3200+3202 (Verfahrens- und Terminsgebühr, Berufung) | D38: 2.8 | E38: =IF($C$25<>"",MAX(E$27*D38,Datenbank!$E$43),"") -> 126.00 | G38: 20.00 | H38: 27.74 | I38: 146.00 | J38: 173.74 | M38: FALSE
B39: Nr. 3206+3210 (Verfahrens- und Terminsgebühr, Revision zum OLG) | D39: =3.1 -> 3.1 | E39: =IF($C$25<>"",MAX(E$27*D39,Datenbank!$E$43),"") -> 139.50 | G39: 20.00 | H39: 30.31 | I39: 159.50 | J39: 189.81 | M39: FALSE
B40: Nr. 3208+3210 (Verfahrens- und Terminsgebühr, Revision zum BGH) | D40: =3.8 -> 3.8 | E40: =IF($C$25<>"",MAX(E$27*D40,Datenbank!$E$43),"") -> 171.00 | G40: 20.00 | H40: 36.29 | I40: 191.00 | J40: 227.29 | M40: FALSE
B41: Nr. 1000 (Einigungsgebühr, vorgerichtlich) | D41: 1.5 | E41: =IF($C$25<>"",MAX(E$27*D41,Datenbank!$E$43),"") -> 67.50 | G41: 13.50 | H41: 15.39 | I41: 81.00 | J41: 96.39 | M41: FALSE
B42: Nr. 1003 (Einigungsgebühr, erster Rechtszug) | D42: 1.0 | E42: =IF($C$25<>"",MAX(E$27*D42,Datenbank!$E$43),"") -> 45.00 | G42: 9.00 | H42: 10.26 | I42: 54.00 | J42: 64.26 | M42: FALSE
B43: Nr. 1004 (Einigungsgebühr, Berufung oder Revision) | D43: 1.3 | E43: =IF($C$25<>"",MAX(E$27*D43,Datenbank!$E$43),"") -> 58.50 | G43: 11.70 | H43: 13.34 | I43: 70.20 | J43: 83.54 | M43: FALSE
B44: Nr. 1008 (Erhöhungsgebühr), gedeckelt gem. Anm. 3 | D44: =IF(L44,MAX(0.3,MIN(F44*0.3,2)),"") -> 0.3 | E44: =IF(AND($C$25<>"",L44),E$27*D44,"") -> 13.50 | F44: 0 | L44: =IF(OR(ISERROR(F44),ISTEXT(F44)),FALSE,NOT(OR(F44<0,F44>99,F44="",F44-INT(F44)>0))) -> TRUE
B45: Zwischensumme | E45: =IF($C$25<>"",SUMIF(M29:M31,TRUE,E29:E31)+SUMIF(M33:M43,TRUE,E33:E43)+IF(L44,IF(F44>0,E44,0),0),"") -> 0.00
B46: Nr. 7002 (Post- und Telekommunikationspauschale) | E46: =IF(E45<>"",MIN(E45*0.2,20),"") -> 0.00
B47: Nr. 7008 (Umsatzsteuer) | E47: =IF(AND($L$5,E45<>""),E48*C5,"") -> 0.00
B48: Endsumme netto | E48: =IF(E45<>"",SUM(E45,E46),"") -> 0.00
B49: Endsumme brutto | E49: =IF(E47<>"",SUM(E48,E47),"") -> 0.00
A51: IV | B51: Gesamtkostenrisiko bei Verfahrensbeendigung … | G51: netto | H51: netto/brutto | I51: brutto
B52: in der ersten Instanz durch Urteil | G52: =IF(AND($L$4,$L$6),$E$16+($E$37+MIN($E$37*0.2,20))*2,"") -> 370.00 | H52: =IF(AND($L$4:$L$6),$E$16+($E$37+MIN($E$37*0.2,20))*(1+$C$5/2)*2,"") -> 395.18 | I52: =IF(AND($L$4:$L$6),$E$16+($E$37+MIN($E$37*0.2,20))*(1+$C$5)*2,"") -> 420.35
B53: in der ersten Instanz durch Vergleich | G53: =IF(AND($L$4,$L$6),$E$17+($E$37+$E$42+MIN(($E$37+$E$42)*0.2,20))*2,"") -> 390.00 | H53: =IF(AND($L$4:$L$6),$E$17+($E$37+$E$42+MIN(($E$37+$E$42)*0.2,20))*(1+$C$5/2)*2,"") -> 423.73 | I53: =IF(AND($L$4:$L$6),$E$17+($E$37+$E$42+MIN(($E$37+$E$42)*0.2,20))*(1+$C$5)*2,"") -> 457.45
B54: in der zweiten Instanz durch Urteil | G54: =IF(AND($L$4,$L$6),$G$52+$E$18+($E$38+MIN($E$38*0.2,20))*2,"") -> 802.00 | H54: =IF(AND($L$4:$L$6),$H$52+$E$18+($E$38+MIN($E$38*0.2,20))*(1+$C$5/2)*2,"") -> 854.92 | I54: =IF(AND($L$4:$L$6),$I$52+$E$18+($E$38+MIN($E$38*0.2,20))*(1+$C$5)*2,"") -> 907.83
B55: in der zweiten Instanz durch Vergleich | G55: =IF(AND($L$4,$L$6),$G$52+$E$19+($E$38+$E$43+MIN(($E$38+$E$43)*0.2,20))*2,"") -> 849.00 | H55: =IF(AND($L$4:$L$6),$H$52+$E$19+($E$38+$E$43+MIN(($E$38+$E$43)*0.2,20))*(1+$C$5/2)*2,"") -> 913.03 | I55: =IF(AND($L$4:$L$6),$I$52+$E$19+($E$38+$E$43+MIN(($E$38+$E$43)*0.2,20))*(1+$C$5)*2,"") -> 977.06
A57: V | B57: Eingabeprüfung
B58: =IF(L58,"Alle Eingaben sind fehlerfrei.","Die rot gefärbten Felder enthalten fehlerhafte oder keine Eingaben!") -> Alle Eingaben sind fehlerfrei. | L58: =AND(L4:L6,L14,L29:L31,L44) -> TRUE
B60: Haftungsausschluss
B61: Für die Richtigkeit der rechtlichen Bewertungen und der Berechnungsergebnisse besteht trotz sorgfältiger Bearbeitung und Prüfung keine Gewähr.
B63: Erläuterungen
A64: I | B64: Gesetzesstand: Der Prozesskostenrechner berücksichtigt die Änderungen durch das am 01.08.2013 in Kraft getretene 2. Kostenrechtsmodernisierungsgesetz.
B65: Für die Gebühren ist gem. §§ 71 Abs. 1 GKG, 60 Abs. 1 RVG die Rechtslage bei Anhängigkeit bzw. Auftragserteilung, für ein Rechtsmittelverfahren diejenige
B66: bei Einlegung des Rechtsmittels maßgeblich. Wird als Gesetzesstand "heute" angegeben, so geht der Prozesskostenrechner vom heutigen Datum aus.
A67: II | B67: Wertstufe: Die Angabe ermöglicht eine Wertfestsetzung auf "bis zu ... EUR". Die Wertstufen sind nach gegenwärtiger Rechtslage für die Gerichtskosten und die
B68: Rechtsanwaltsvergütung identisch.
B69: Wertgebühren: Die Mindestbetragsregelung gem. § 34 Abs. 2 GKG wendet der Prozesskostenrechner auf jede Gebühr einzeln an.
A70: III | B70: Gegenstandswert, gedeckelt: Die abweichende Deckelung bei mehreren Auftraggebern gem. § 22 Abs. 2 Satz 2 RVG wird vom Prozesskostenrechner wegen
B71: ihrer geringen praktischen Bedeutung nicht berücksichtigt.
B72: Wertstufe: s. oben II.
B73: Wertgebühren: Die Mindestbetragsregelung gem. § 13 Abs. 2 RVG wendet der Prozesskostenrechner auf jede Gebühr einzeln an. Ausgenommen ist nur die
B74: Erhöhungsgebühr gem. Nr. 1008 VV-RVG. Ob die Mindestbetragsregelung auch schon auf die zu erhöhende Gebühr anzuwenden ist, wenn diese unter dem
B75: Mindestbetrag liegt, ist umstritten (Mayer/Kroiß/Kroiß: RVG, § 13, Rdnr. 33). Wegen der geringen praktischen Bedeutung behandelt der Prozesskostenrechner
B76: diesen Fall nicht besonders, sondern wendet die Mindestbetragsregelung unterschiedslos an.
B77: Einigungs- und Erhöhungsgebühr, Pauschale: Die Einigungsgebühr, die Erhöhungsgebühr und die Post- und Telekommunikationspauschale gem. Nr. 1000 ff.,
B78: 1008, 7002 VV-RVG können für jede Angelegenheit gem. §§ 16 ff. RVG gesondert verlangt werden. Um die Tabelle übersichtlich zu halten, geht der Prozesskos-
B79: tenrechner von nur einer Angelegenheit aus. Gesamtgebühren für mehrere Angelegenheiten (z. B. vorgerichtliches, Mahn- und streitiges Verfahren mit einzelnen
B80: Rechtszügen) müssen eigenverantwortlich unter Berücksichtigung der Anrechnungsregelungen aufsummiert werden.
A81: IV | B81: Gesamtkostenrisiko: Das errechnete Gesamtkostenrisiko umfasst die ggf. reduzierten Gerichtsgebühren sowie die Verfahrens-, Termins- und ggf. Einigungsge-
B82: bühren nebst Post- und Telekommunikationspauschale für die Prozessbevollmächtigten beider Seiten, und zwar für die Fälle, dass beide Parteien, nur eine Par-
B83: tei oder keine Partei vorsteuerabzugsberechtigt ist.

Sheet Datenbank (hidden)
A1: Gesetzesstand: | B1: =IF(Prozesskostenrechner!C6="heute",IF(TODAY()<=DATE(2013,7,31),"bis 31.07.2013","ab 01.08.2013"),Prozesskostenrechner!C6) -> ab 01.08.2013
A3: Gerichtskosten, Wertgebühren gem. § 34 GKG (gesetzliche Vorgaben und konkrete Berechnung)
A4: Gesetzesstand: | E4: bis 31.07.2013 | L4: Gesetzesstand: | P4: ab 01.08.2013
A5: Streithöchstwert gem. § 39 Abs. 2 GKG | E5: 30,000,000.00 | L5: Streithöchstwert gem. § 39 Abs. 2 GKG | P5: 30,000,000.00
A6: Mindestgebühr gem. § 34 Abs. 2 GKG | E6: 10.00 | L6: Mindestgebühr gem. § 34 Abs. 2 GKG | P6: 15.00
A7: Streitwert, gedeckelt | E7: =IF(Prozesskostenrechner!$C$4="",0,MIN(E$5,Prozesskostenrechner!$C$4)) -> 0.00 | L7: Streitwert, gedeckelt | P7: =IF(Prozesskostenrechner!$C$4="",0,MIN(P$5,Prozesskostenrechner!$C$4)) -> 0.00
A8: Staffel | B8: 1 | C8: 2 | D8: 3 | E8: 4 | F8: 5 | G8: 6 | H8: 7 | I8: 8 | J8: 9 | L8: Staffel | M8: 1 | N8: 2 | O8: 3 | P8: 4 | Q8: 5 | R8: 6 | S8: 7 | T8: 8
A9: Beginn | B9: 0.00 | C9: =B10+0.01 -> 300.01 | D9: =C10+0.01 -> 1,500.01 | E9: 5,000.01 | F9: 10,000.01 | G9: 25,000.01 | H9: 50,000.01 | I9: 200,000.01 | J9: 500,000.01 | L9: Beginn | M9: 0.00 | N9: =M10+0.01 -> 500.01 | O9: =N10+0.01 -> 2,000.01 | P9: 10,000.01 | Q9: 25,000.01 | R9: 50,000.01 | S9: 200,000.01 | T9: 500,000.01
A10: Ende | B10: 300.00 | C10: 1,500.00 | D10: 5,000.00 | E10: 10,000.00 | F10: 25,000.00 | G10: 50,000.00 | H10: 200,000.00 | I10: 500,000.00 | L10: Ende | M10: 500.00 | N10: 2,000.00 | O10: 10,000.00 | P10: 25,000.00 | Q10: 50,000.00 | R10: 200,000.00 | S10: 500,000.00
A11: Erhöhungsstufe | B11: =B10 -> 300.00 | C11: 300.00 | D11: 500.00 | E11: 1,000.00 | F11: 3,000.00 | G11: 5,000.00 | H11: 15,000.00 | I11: 30,000.00 | J11: 50,000.00 | L11: Erhöhungsstufe | M11: =M10 -> 500.00 | N11: 500.00 | O11: 1,000.00 | P11: 3,000.00 | Q11: 5,000.00 | R11: 15,000.00 | S11: 30,000.00 | T11: 50,000.00
A12: Erhöhung | B12: 25.00 | C12: 10.00 | D12: 8.00 | E12: 15.00 | F12: 23.00 | G12: 29.00 | H12: 100.00 | I12: 150.00 | J12: 150.00 | L12: Erhöhung | M12: 35.00 | N12: 18.00 | O12: 19.00 | P12: 26.00 | Q12: 35.00 | R12: 120.00 | S12: 179.00 | T12: 180.00
A13: Gebührensprünge | B13: 1 | C13: =MAX(0,ROUNDDOWN((MIN($E$7,C10)-C9)/C11+1,0)) -> 0 | D13: 0 | E13: 0 | F13: 0 | G13: 0 | H13: 0 | I13: 0 | J13: =MAX(0,ROUNDDOWN(($E$7-J9)/J11+1,0)) -> 0 | L13: Gebührensprünge | M13: 1 | N13: =MAX(0,ROUNDDOWN((MIN($E$7,N10)-N9)/N11+1,0)) -> 0 | O13: 0 | P13: 0 | Q13: 0 | R13: 0 | S13: 0 | T13: =MAX(0,ROUNDDOWN(($E$7-T9)/T11+1,0)) -> 0
A14: Teilwertstufen | B14: =B13*B11 -> 300.00 | C14: =C13*C11 -> 0.00 | D14: =D13*D11 -> 0.00 | E14: =E13*E11 -> 0.00 | F14: 0.00 | G14: 0.00 | H14: 0.00 | I14: 0.00 | J14: 0.00 | L14: Teilwertstufen | M14: =M13*M11 -> 500.00 | N14: 0.00 | O14: 0.00 | P14: 0.00 | Q14: 0.00 | R14: 0.00 | S14: 0.00 | T14: =T13*T11 -> 0.00
A15: Wertstufe | B15: =SUM(B14:J14) -> 300.00 | L15: Wertstufe | M15: =SUM(M14:T14) -> 500.00
A16: Teilgebühren | B16: =B13*B12 -> 25.00 | C16: =C13*C12 -> 0.00 | D16: 0.00 | E16: 0.00 | F16: 0.00 | G16: 0.00 | H16: 0.00 | I16: 0.00 | J16: 0.00 | L16: Teilgebühren | M16: =M13*M12 -> 35.00 | N16: =N13*N12 -> 0.00 | O16: 0.00 | P16: 0.00 | Q16: 0.00 | R16: 0.00 | S16: 0.00 | T16: =T13*T12 -> 0.00
A17: 1,0-Gebühr | B17: =SUM(B16:J16) -> 25.00 | L17: 1,0-Gebühr | M17: =SUM(M16:T16) -> 35.00
A19: Gerichtskosten in Abhängigkeit vom Gesetzesstand (konkrete Berechnung)
A20: Streitwert, gedeckelt | E20: =IF($B$1=$E4,$E7,IF($B$1=$P4,$P7,"")) -> 0.00
A21: Mindestgebühr | E21: =IF($B$1=$E4,$E6,IF($B$1=$P4,$P6,"")) -> 15.00
A22: Wertstufe | E22: =IF($B$1=$E4,$B15,IF($B$1=$P4,$M15,"")) -> 500.00
A23: 1,0-Gebühr | E23: =IF($B$1=$E4,$B17,IF($B$1=$P4,$M17,"")) -> 35.00
A25: Rechtsanwaltsvergütung, Wertgebühren gem. § 13 RVG (gesetzliche Vorgaben und konkrete Berechnung)
A26: Gesetzesstand: | E26: bis 31.07.2013 | L26: Gesetzesstand: | P26: ab 01.08.2013
A27: Gegenstandshöchstwert gem. § 22 Abs. 2 Satz 1 RVG | E27: 30,000,000.00 | L27: Gegenstandshöchstwert gem. § 22 Abs. 2 Satz 1 RVG | P27: 30,000,000.00
A28: Mindestgebühr gem. § 13 Abs. 2 RVG | E28: 10.00 | L28: Mindestgebühr gem. § 13 Abs. 2 RVG | P28: 15.00
A29: Gegenstandswert, gedeckelt | E29: =IF(Prozesskostenrechner!$C$4="",0,MIN(E$27,Prozesskostenrechner!$C$4)) -> 0.00 | L29: Gegenstandswert, gedeckelt | P29: =IF(Prozesskostenrechner!$C$4="",0,MIN(P$27,Prozesskostenrechner!$C$4)) -> 0.00
A30: Staffel | B30: 1 | C30: 2 | D30: 3 | E30: 4 | F30: 5 | G30: 6 | H30: 7 | I30: 8 | J30: 9 | L30: Staffel | M30: 1 | N30: 2 | O30: 3 | P30: 4 | Q30: 5 | R30: 6 | S30: 7 | T30: 9
A31: Beginn | B31: 0.00 | C31: =B32+0.01 -> 300.01 | D31: 1,500.01 | E31: 5,000.01 | F31: 10,000.01 | G31: 25,000.01 | H31: 50,000.01 | I31: 200,000.01 | J31: 500,000.01 | L31: Beginn | M31: 0.00 | N31: =M32+0.01 -> 500.01 | O31: 2,000.01 | P31: 10,000.01 | Q31: 25,000.01 | R31: 50,000.01 | S31: 200,000.01 | T31: 500,000.01
A32: Ende | B32: 300.00 | C32: 1,500.00 | D32: 5,000.00 | E32: 10,000.00 | F32: 25,000.00 | G32: 50,000.00 | H32: 200,000.00 | I32: 500,000.00 | L32: Ende | M32: 500.00 | N32: 2,000.00 | O32: 10,000.00 | P32: 25,000.00 | Q32: 50,000.00 | R32: 200,000.00 | S32: 500,000.00
A33: Erhöhungsstufe | B33: =B32 -> 300.00 | C33: 300.00 | D33: 500.00 | E33: 1,000.00 | F33: 3,000.00 | G33: 5,000.00 | H33: 15,000.00 | I33: 30,000.00 | J33: 50,000.00 | L33: Erhöhungsstufe | M33: =M32 -> 500.00 | N33: 500.00 | O33: 1,000.00 | P33: 3,000.00 | Q33: 5,000.00 | R33: 15,000.00 | S33: 30,000.00 | T33: 50,000.00
A34: Erhöhung | B34: 25.00 | C34: 20.00 | D34: 28.00 | E34: 37.00 | F34: 40.00 | G34: 72.00 | H34: 77.00 | I34: 118.00 | J34: 150.00 | L34: Erhöhung | M34: 45.00 | N34: 35.00 | O34: 51.00 | P34: 46.00 | Q34: 75.00 | R34: 85.00 | S34: 120.00 | T34: 150.00
A35: Gebührensprünge | B35: 1 | C35: =MAX(0,ROUNDDOWN((MIN($E$29,C32)-C31)/C33+1,0)) -> 0 | D35: =MAX(0,ROUNDDOWN((MIN($E$29,D32)-D31)/D33+1,0)) -> 0 | E35: 0 | F35: 0 | G35: 0 | H35: 0 | I35: 0 | J35: =MAX(0,ROUNDDOWN(($E$29-J31)/J33+1,0)) -> 0 | L35: Gebührensprünge | M35: 1 | N35: =MAX(0,ROUNDDOWN((MIN($E$29,N32)-N31)/N33+1,0)) -> 0 | O35: 0 | P35: 0 | Q35: 0 | R35: 0 | S35: 0 | T35: =MAX(0,ROUNDDOWN(($E$29-T31)/T33+1,0)) -> 0
A36: Teilwertstufen | B36: =B35*B33 -> 300.00 | C36: 0.00 | D36: 0.00 | E36: 0.00 | F36: 0.00 | G36: 0.00 | H36: 0.00 | I36: 0.00 | J36: 0.00 | L36: Teilwertstufen | M36: =M35*M33 -> 500.00 | N36: 0.00 | O36: 0.00 | P36: 0.00 | Q36: 0.00 | R36: 0.00 | S36: 0.00 | T36: =T35*T33 -> 0.00
A37: Wertstufe | B37: =SUM(B36:J36) -> 300.00 | L37: Wertstufe | M37: =SUM(M36:T36) -> 500.00
A38: Teilgebühren | B38: =B35*B34 -> 25.00 | C38: =C35*C34 -> 0.00 | D38: 0.00 | E38: 0.00 | F38: 0.00 | G38: 0.00 | H38: 0.00 | I38: 0.00 | J38: 0.00 | L38: Teilgebühren | M38: =M35*M34 -> 45.00 | N38: =N35*N34 -> 0.00 | O38: 0.00 | P38: 0.00 | Q38: 0.00 | R38: 0.00 | S38: 0.00 | T38: =T35*T34 -> 0.00
A39: 1,0-Gebühr | B39: =SUM(B38:J38) -> 25.00 | L39: 1,0-Gebühr | M39: =SUM(M38:T38) -> 45.00
A41: Rechtanwaltsvergütung in Abhängigkeit vom Gesetzesstand (konkrete Berechnung)
A42: Gegenstandswert, gedeckelt | E42: =IF($B$1=$E26,$E29,IF($B$1=$P26,$P29,"")) -> 0.00
A43: Mindestgebühr | E43: =IF($B$1=$E26,$E28,IF($B$1=$P26,$P28,"")) -> 15.00
A44: Wertstufe | E44: =IF($B$1=$E26,$B37,IF($B$1=$P26,$M37,"")) -> 500.00
A45: 1,0-Gebühr | E45: =IF($B$1=$E26,$B39,IF($B$1=$P26,$M39,"")) -> 45.00
A47: Gebühr einer Verbindlichen Auskunft (§ 89 Abs. 3 bis 5 AO)
A48: Gesetzesstand: | B48: =Prozesskostenrechner!C6 -> ab 01.08.2013
A49: Gebühr | B49: =IF(AND(B1="bis 31.07.2013",Datenbank!E7<5000),121,IF(AND(B1="bis 31.07.2013",Datenbank!E7>4999),B17,IF(AND(B1="ab 01.08.2013",Datenbank!E7<10000),0,IF(AND(B1="ab 01.08.2013",Datenbank!E7>9999),M17,-1)))) -> 0
